Cogmind - Beta 16.1 @@@ ROGUE MODE // 2026.03.02 @ 20:00:12 Player: Heni Result: Destroyed by Y-64 Sentinel with KE Penetrator Performance ------------- Evolutions (6) 3000 Regions Visited (10) 2000 Robots Destroyed (18) 90 Value Destroyed (424) 424 Prototype IDs (6) 120 Alien Tech Used (0) 0 Bonus (300) 300 TOTAL SCORE: 5934 Bonus ------- Registered with UFD 300 Cogmind --------- Core Integrity 0/1150 Matter 139/300 Energy 99/100 System Corruption 0% Temperature Cool (0) Movement Core (50) Location -4/Factory Parts ------- > --- POWER (2) -------- (None) > --- PROPULSION (6) --- (None) > --- UTILITY (7) ------ (None) > --- WEAPON (4) ------- (None) > --- INVENTORY (5) ---- Improved Hardlight Generator Hypervelocity Mass Driver Peak State ------------ > --- POWER ------------ Light Ion Engine Improved Deuterium Engine > --- PROPULSION ------- Light Treads Overtuned Treads Overtuned Medium Treads Flexi-carbon Leg Compact Wheel > --- UTILITY ---------- Scrap Suit Large Storage Unit 0b10 Decoder Chip [Looter] Improved Shock Absorption System > --- WEAPON ----------- Assault Rifle Heavy Assault Rifle Overtuned Coil Gun > --- INVENTORY -------- (None) [Rating: 50] Favorites ----------- Power Ion Engine Engine Ion Engine Propulsion Light Treads Treads Light Treads Leg Flexi-carbon Leg Wheel Compact Wheel Flight Unit Impulse Thruster Utility Scrap Suit Device Scrap Suit Storage Large Storage Unit Processor Signal Interpreter Weapon Assault Rifle Ballistic Gun Assault Rifle Ballistic Cannon Hypervelocity Mass Driver Build | -11 -10 -10 -10 -7 -5 -5 -5 -4 -4 -4 ------- Run | Yrd Mat Min Sub Scr Fac Upp Upp Fac Was Fac Slots Evolved 12 | . . . . . 10 . . 2 . . Power 1 | . . . . . 1 . . . . . Propulsion 4 | . . . . . 4 . . . . . Utility 5 | . . . . . 3 . . 2 . . Weapon 2 | . . . . . 2 . . . . . Parts Attached 26 | 6 6 . . 5 . 5 . 2 . 2 Power 4 | 1 1 . . 1 . 1 . . . . Engine 4 | 1 1 . . 1 . 1 . . . . Core . | . . . . . . . . . . . Reactor . | . . . . . . . . . . . Propulsion 10 | 2 1 . . 2 . 2 . 1 . 2 Treads 5 | 2 1 . . 2 . . . . . . Leg 1 | . . . . . . 1 . . . . Wheel 1 | . . . . . . 1 . . . . Hover . | . . . . . . . . . . . Flight 3 | . . . . . . . . 1 . 2 Utility 6 | 1 2 . . 1 . 2 . . . . Device 2 | . . . . 1 . 1 . . . . Storage 2 | 1 1 . . . . . . . . . Processor 2 | . 1 . . . . 1 . . . . Hackware . | . . . . . . . . . . . Protection . | . . . . . . . . . . . Artifact . | . . . . . . . . . . . Weapon 6 | 2 2 . . 1 . . . 1 . . Energy Gun . | . . . . . . . . . . . Energy Cannon . | . . . . . . . . . . . Ballistic Gun 5 | 2 2 . . 1 . . . . . . Ballistic Cannon 1 | . . . . . . . . 1 . . Launcher . | . . . . . . . . . . . Special Weapon . | . . . . . . . . . . . Impact Weapon . | . . . . . . . . . . . Slashing Weapon . | . . . . . . . . . . . Piercing Weapon . | . . . . . . . . . . . Special Melee Weapon . | . . . . . . . . . . . Unidentified Prototypes . | . . . . . . . . . . . Parts Lost 4 | . . 1 . . . 1 . 1 . 1 Power 1 | . . 1 . . . . . . . . Propulsion 2 | . . . . . . . . 1 . 1 Utility . | . . . . . . . . . . . Weapon 1 | . . . . . . 1 . . . . Highest Loss Streak 1 | . . 1 . . . 1 . 1 . 1 To Critical Strikes . | . . . . . . . . . . . Average Backups 5 | 4 7 11 11 6 5 3 . . 2 2 Power . | 1 1 1 1 1 1 . . . . . Propulsion 2 | 2 4 5 5 2 2 1 . . . . Utility . | . . 1 1 1 2 1 . . 1 1 Weapon 1 | . 1 4 4 1 . . . . 1 1 Tool/Special . | . . . . . . . . . . . Unused Backups 6 | . . . . 5 . . . . . 1 Power . | . . . . . . . . . . . Propulsion 3 | . . . . 3 . . . . . . Utility 1 | . . . . . . . . . . 1 Weapon 2 | . . . . 2 . . . . . . Tool/Special . | . . . . . . . . . . . Average Slot Usage (%) 67 | . 96 98 100 78 35 43 . 2 . . Engine 6 | . 14 12 14 5 5 5 . . . . Treads 22 | . 28 28 28 27 11 10 . . . . Device 6 | . . . . 10 5 5 . . . . Storage 4 | . 14 14 14 3 . 1 . . . . Processor 4 | . 10 14 14 3 . 1 . . . . Ballistic Gun 21 | . 28 28 28 27 11 12 . . . . Peak Build Rating 50 | 6 8 8 8 28 28 50 . 14 1 7 Average Rating 16 | 4 6 7 8 20 28 30 . 4 1 1 On Entrance 8 | . 6 8 8 8 28 28 . . 1 1 Avg Prop Armor Cover (%) 14 | . . . . 15 . 14 . . . . Naked Turns 459 | . . . . 4 . 50 27 101 84 193 Heaviest Build 52 | 14 29 27 27 27 21 52 . . . . Greatest Support 43 | 40 40 40 40 43 43 43 3 7 3 4 Greatest Overweight (x) 2 | . . . . . . 2 . . . . Average Overweight (x) . | . . . . . . . . . . . Largest Inventory Capacity 15 | 8 15 15 15 15 5 15 5 5 5 5 Average Capacity 8 | 7 10 15 15 7 5 7 5 5 5 5 Most Carried 12 | 7 12 12 11 11 5 5 . 2 2 2 Average Carried 5 | 4 7 11 11 6 5 3 . . 2 1 Final Capacity 15 | 8 15 15 15 5 5 5 5 5 5 5 Final Carried 12 | 6 12 11 11 5 5 . . 2 2 2 Scrap Suit Usage (%) 48 | . . . . 72 100 86 . . . . Parts Cannibalized 1 | . . . . 1 . . . . . . Class Distribution -------------------- 51% | Mutant 48% | Scrapper Dominant Class ---------------- Mutant | -10/Materials Mutant | -10/Mines Mutant | -10/Subcaves Scrapper | -7/Scraptown Scrapper | -5/Factory Scrapper | -5/Upper Caves Mutant | -5/Upper Caves Mutant | -4/Factory Mutant | -4/Waste Mutant | -4/Factory Resources | -11 -10 -10 -10 -7 -5 -5 -5 -4 -4 -4 ----------- Run | Yrd Mat Min Sub Scr Fac Upp Upp Fac Was Fac Matter Collected 711 | 264 201 92 . 3 . 137 . . . 14 Remotely . | . . . . . . . . . . . Salvage Created 640 | 79 379 92 . . . 60 . . . 30 Parts 34 | 2 18 5 . . . 5 . . . 4 Haulers Intercepted 1 | . 1 . . . . . . . . . Recyclers Shooed 1 | . 1 . . . . . . . . . Parts Field Recycled . | . . . . . . . . . . . Retrieved Matter . | . . . . . . . . . . . Parts Self-Destructed 10 | . . . 4 . . 6 . . . . Prevented 1 | . . . . . . 1 . . . . Parts Restored . | . . . . . . . . . . . Kills | -11 -10 -10 -10 -7 -5 -5 -5 -4 -4 -4 ------- Run | Yrd Mat Min Sub Scr Fac Upp Upp Fac Was Fac Combat Hostiles Destroyed 11 | . 7 2 . . . 1 . . . 1 Guns 10 | . 7 2 . . . 1 . . . . Cannons 1 | . . . . . . . . . . 1 Classes Destroyed 9 | 1 6 . . . . 1 . . . 1 Worker 1 | . 1 . . . . . . . . . Hauler 1 | . 1 . . . . . . . . . Recycler 2 | 1 1 . . . . . . . . . Operator 1 | . 1 . . . . . . . . . Watcher 2 | . 2 . . . . . . . . . Swarmer 3 | . 3 . . . . . . . . . Cutter 1 | . . . . . . . . . . 1 Grunt 6 | . 4 2 . . . . . . . . Hunter 1 | . . . . . . 1 . . . . Best Kill Streak 4 | 1 4 1 . . . 1 . . . 1 Combat Bots Only 3 | . 3 1 . . . 1 . . . 1 Max Kills in Single Turn 2 | 1 2 1 . . . 1 . . . 1 Gunslinging . | . . . . . . . . . . . Exploded . | . . . . . . . . . . . Melee . | . . . . . . . . . . . Uniques/NPCs Destroyed . | . . . . . . . . . . . Combat | -11 -10 -10 -10 -7 -5 -5 -5 -4 -4 -4 -------- Run | Yrd Mat Min Sub Scr Fac Upp Upp Fac Was Fac Hostile Shots Fired 221 | . 36 16 . . . 72 22 19 2 54 Missed 78 | . 7 5 . . . 21 9 12 1 23 Hits 143 | . 29 11 . . . 51 13 7 1 31 Melee 11 | . . . . . . . . . 1 10 Projectile 132 | . 29 11 . . . 51 13 7 . 21 AOE 3 | . . . . . . . . . . 3 Critical Strikes 9 | . . . . . . . 1 1 1 6 Damage Taken 2942 | . 381 162 . . . 813 266 144 39 1137 Core 1809 | . 26 32 . . . 315 266 102 39 1029 Absorbed by Shields . | . . . . . . . . . . . Regen/Repaired (Parts) 10 | . . . . 10 . . . . . . Core Remaining (%) 72 | 100 . . . 76 . . 41 . . . Volleys Fired 73 | 1 39 11 . . 3 15 . 2 . 2 Largest 3 | 2 2 2 . . 2 3 . 1 . 1 Hottest 77 | 40 40 40 . . 52 77 . 56 . 56 Shots Fired 148 | 2 78 22 . . 6 36 . 2 . 2 Gun 144 | 2 78 22 . . 6 36 . . . . Cannon 4 | . . . . . . . . 2 . 2 Launcher . | . . . . . . . . . . . Special . | . . . . . . . . . . . Kinetic 148 | 2 78 22 . . 6 36 . 2 . 2 Thermal . | . . . . . . . . . . . Explosive . | . . . . . . . . . . . Electromagnetic . | . . . . . . . . . . . Robot Hit Streak 14 | 2 14 7 . . 2 9 . . . 1 Robot Miss Streak 9 | . 5 2 . . 1 9 . . . 2 Penetration Max . | . . . . . . . . . . . Secondary Targets 1 | . . 1 . . . . . . . . Max Gunslinging Chain 1 | . . 1 . . . . . . . . Shots Hit Robots 92 | 2 52 16 . . 3 18 . . . 1 Core Hits 42 | 2 24 7 . . 2 4 1 . . 2 Critical Kills 1 | . . . . . . . . . . 1 Critical Parts Destroyed . | . . . . . . . . . . . Critical Strikes 1 | . . . . . . . . . . 1 Destroy 1 | . . . . . . . . . . 1 Melee Attacks . | . . . . . . . . . . . Impact . | . . . . . . . . . . . Slashing . | . . . . . . . . . . . Piercing . | . . . . . . . . . . . Sneak Attacks . | . . . . . . . . . . . Combat Hostiles . | . . . . . . . . . . . Follow-up Attacks . | . . . . . . . . . . . Damage Inflicted 1214 | 31 676 133 . . 37 254 15 17 . 51 Guns 1120 | 23 673 133 . . 37 254 . . . . Cannons 25 | . . . . . . . . . . 25 Explosions . | . . . . . . . . . . . Melee . | . . . . . . . . . . . Ramming 69 | 8 3 . . . . . 15 17 . 26 Kinetic 1145 | 23 673 133 . . 37 254 . . . 25 Thermal . | . . . . . . . . . . . Explosive . | . . . . . . . . . . . Electromagnetic . | . . . . . . . . . . . Impact . | . . . . . . . . . . . Slashing . | . . . . . . . . . . . Piercing . | . . . . . . . . . . . Highest Corruption . | . . . . . . . . . . . Average Corruption . | . . . . . . . . . . . Corruption Purged . | . . . . . . . . . . . Corruption Blocked . | . . . . . . . . . . . Overload Shots . | . . . . . . . . . . . Overflow Damage . | . . . . . . . . . . . Projectiles . | . . . . . . . . . . . Explosions . | . . . . . . . . . . . Melee . | . . . . . . . . . . . Knockbacks . | . . . . . . . . . . . Impact . | . . . . . . . . . . . Kinetic . | . . . . . . . . . . . Secondary . | . . . . . . . . . . . Self-Inflicted Damage 28 | . . . . . . . 7 8 . 13 Shots . | . . . . . . . . . . . Rammed 15 | 2 1 . . . . . 3 3 . 6 Targets Rammed 15 | 2 1 . . . . . 3 3 . 6 Kicked . | . . . . . . . . . . . Crushed . | . . . . . . . . . . . Highest Temperature 20 | . 12 13 . . . 20 . 19 . . Average Temperature 7 | . 6 7 . . . 8 . 19 . . Received Heat Transfer 430 | . 135 96 . . . . 81 58 . 60 Siege Activations . | . . . . . . . . . . . Martial Activations . | . . . . . . . . . . . Shielding Activations . | . . . . . . . . . . . Robots Disrupted . | . . . . . . . . . . . Combat Hostiles . | . . . . . . . . . . . Robots Corrupted . | . . . . . . . . . . . Combat Hostiles . | . . . . . . . . . . . Parts Fried . | . . . . . . . . . . . Impact Corruptions . | . . . . . . . . . . . Robots Melted . | . . . . . . . . . . . Combat Hostiles . | . . . . . . . . . . . Parts Melted . | . . . . . . . . . . . Heat Transferred . | . . . . . . . . . . . Parts Sabotaged . | . . . . . . . . . . . Parts Stolen . | . . . . . . . . . . . Parts Stripped . | . . . . . . . . . . . Power Chain Reactions . | . . . . . . . . . . . Alert | -11 -10 -10 -10 -7 -5 -5 -5 -4 -4 -4 ------- Run | Yrd Mat Min Sub Scr Fac Upp Upp Fac Was Fac Maximum Alert Level . | . . . . . . . . . . . Low Security (%) 100 | 100 100 100 . . 100 . . 100 100 100 Level 1 . | . . . . . . . . . . . Level 2 . | . . . . . . . . . . . Level 3 . | . . . . . . . . . . . Level 4 . | . . . . . . . . . . . Level 5 . | . . . . . . . . . . . High Security . | . . . . . . . . . . . Max Security . | . . . . . . . . . . . Peak Influence 95 | . 95 38 . . 2 . . 76 26 30 Initial 28 | . . 8 . . . . . 28 26 . Average 19 | . 31 20 . . . . . 24 11 5 Influence Increases 592 | 5 213 50 . . 2 120 . 127 . 75 Destroy 0b10 Robot/C 220 | . 140 40 . . . 20 . . . 20 Destroy 0b10 Robot/NC 35 | 5 30 . . . . . . . . . Destroy Leader 66 | . 36 10 . . . 10 . . . 10 Successful Hack 29 | . 7 . . . . . . 22 . . Destroy Structure 2 | . . . . . 2 . . . . . Lose Combat Pursuer 240 | . . . . . . 90 . 105 . 45 Influence Decreases 562 | 5 191 64 8 . 2 50 24 97 76 45 Entered New Map 101 | . . 14 5 . . . 14 18 50 . Time Decay 436 | 5 191 40 3 . 2 50 10 74 26 35 Lost Part 25 | . . 10 . . . . . 5 . 10 Squads Dispatched 9 | . 1 . . . 1 . . 6 . 1 Investigation 3 | . . . . . . . . 3 . . Extermination 1 | . . . . . . . . 1 . . Reinforcement 5 | . 1 . . . 1 . . 2 . 1 Assault . | . . . . . . . . . . . Garrison . | . . . . . . . . . . . Intercept . | . . . . . . . . . . . Searches Triggered . | . . . . . . . . . . . Construction Impeded 1 | . . . . . . . . 1 . . Haulers Reinforced . | . . . . . . . . . . . Active Scanning Responses . | . . . . . . . . . . . Cargo Convoy Interrupts . | . . . . . . . . . . . Stealth | -11 -10 -10 -10 -7 -5 -5 -5 -4 -4 -4 --------- Run | Yrd Mat Min Sub Scr Fac Upp Upp Fac Was Fac Distress Signals 3 | . . . . . . . . . . 3 Communications Jammed . | . . . . . . . . . . . Distress Signals . | . . . . . . . . . . . Times Spotted 62 | . 12 2 . . 1 10 5 10 6 16 Peak Tracking Total 11 | . 3 2 . . 1 9 5 7 6 11 Tactical Retreats 8 | . . . . . . 2 . 3 . 3 Traps | -11 -10 -10 -10 -7 -5 -5 -5 -4 -4 -4 ------- Run | Yrd Mat Min Sub Scr Fac Upp Upp Fac Was Fac Traps Triggered 3 | . 2 . . . . . . 1 . . Indirectly . | . . . . . . . . . . . Trap Hack Attempts . | . . . . . . . . . . . Triggered . | . . . . . . . . . . . Disarmed . | . . . . . . . . . . . Reprogrammed . | . . . . . . . . . . . Reused . | . . . . . . . . . . . Traps Extracted . | . . . . . . . . . . . Installed . | . . . . . . . . . . . Triggered . | . . . . . . . . . . . Machines | -11 -10 -10 -10 -7 -5 -5 -5 -4 -4 -4 ---------- Run | Yrd Mat Min Sub Scr Fac Upp Upp Fac Was Fac Machines Disabled . | . . . . . . . . . . . Max in Single Turn . | . . . . . . . . . . . Machines Repaired . | . . . . . . . . . . . Machines Dismantled . | . . . . . . . . . . . Machines Sabotaged . | . . . . . . . . . . . Overloaded Fab Kills . | . . . . . . . . . . . Hacking | -11 -10 -10 -10 -7 -5 -5 -5 -4 -4 -4 --------- Run | Yrd Mat Min Sub Scr Fac Upp Upp Fac Was Fac Machines Accessed 11 | . 2 . . . 1 . . 6 . 2 Terminals 11 | . 2 . . . 1 . . 6 . 2 Fabricators . | . . . . . . . . . . . Repair Stations . | . . . . . . . . . . . Recycling Units . | . . . . . . . . . . . Scanalyzers . | . . . . . . . . . . . Garrison Access . | . . . . . . . . . . . Total Hacks 29 | . 7 . . . 2 . . 17 . 3 Successful 7 | . 3 . . . 1 . . 2 . 1 Failed 22 | . 4 . . . 1 . . 15 . 2 Catastrophic 4 | . . . . . . . . 4 . . Database Lockouts . | . . . . . . . . . . . Manual 18 | . 6 . . . . . . 10 . 2 Terminals 29 | . 7 . . . 2 . . 17 . 3 Fabricators . | . . . . . . . . . . . Repair Stations . | . . . . . . . . . . . Recycling Units . | . . . . . . . . . . . Scanalyzers . | . . . . . . . . . . . Garrison Access . | . . . . . . . . . . . Terminal Hacks 7 | . 3 . . . 1 . . 2 . 1 Part Schematic 1 | . 1 . . . . . . . . . Robot Analysis 1 | . 1 . . . . . . . . . Open DSF 2 | . . . . . 1 . . . . 1 Branch Access Points 1 | . . . . . . . . 1 . . Terminal Index 1 | . . . . . . . . 1 . . Zone Layout 1 | . 1 . . . . . . . . . Fabricator Hacks . | . . . . . . . . . . . Repair Station Hacks . | . . . . . . . . . . . Recycling Unit Hacks . | . . . . . . . . . . . Scanalyzer . | . . . . . . . . . . . Garrison Access Hacks . | . . . . . . . . . . . Unauthorized Hacks . | . . . . . . . . . . . Terminals . | . . . . . . . . . . . Fabricators . | . . . . . . . . . . . Repair Stations . | . . . . . . . . . . . Recycling Units . | . . . . . . . . . . . Scanalyzers . | . . . . . . . . . . . Garrison Access . | . . . . . . . . . . . Data Cores Recovered . | . . . . . . . . . . . Used . | . . . . . . . . . . . Hacking Detections 10 | . 2 . . . 1 . . 6 . 1 Full Trace Events 3 | . . . . . . . . 3 . . Feedback Events . | . . . . . . . . . . . Feedback Blocked . | . . . . . . . . . . . Robot Schematics Acquired . | . . . . . . . . . . . Robots Built . | . . . . . . . . . . . Authchips . | . . . . . . . . . . . Time . | . . . . . . . . . . . Total Robot Build Rating . | . . . . . . . . . . . Part Schematics Acquired 1 | . 1 . . . . . . . . . Parts Built . | . . . . . . . . . . . Authchips . | . . . . . . . . . . . Time . | . . . . . . . . . . . Total Part Build Rating . | . . . . . . . . . . . Part Studies Acquired . | . . . . . . . . . . . Parts Repaired . | . . . . . . . . . . . Time . | . . . . . . . . . . . Parts Recycled . | . . . . . . . . . . . Recycled Matter . | . . . . . . . . . . . Retrieved Matter . | . . . . . . . . . . . Retrieved Components . | . . . . . . . . . . . Parts Scanalyzed . | . . . . . . . . . . . Part Schematics Acquired . | . . . . . . . . . . . Parts Damaged . | . . . . . . . . . . . Bothacking | -11 -10 -10 -10 -7 -5 -5 -5 -4 -4 -4 ------------ Run | Yrd Mat Min Sub Scr Fac Upp Upp Fac Was Fac Used RIF Installer . | . . . . . . . . . . . Robots Hacked . | . . . . . . . . . . . Non-combat . | . . . . . . . . . . . Combat . | . . . . . . . . . . . Robot Hacks Applied . | . . . . . . . . . . . Relay Couplers Released . | . . . . . . . . . . . Fabnet Peak Effective % . | . . . . . . . . . . . Robots Rewired . | . . . . . . . . . . . Allies Hacked . | . . . . . . . . . . . Hacks Repelled . | . . . . . . . . . . . Allies | -11 -10 -10 -10 -7 -5 -5 -5 -4 -4 -4 -------- Run | Yrd Mat Min Sub Scr Fac Upp Upp Fac Was Fac Total Allies . | . . . . . . . . . . . Largest Group . | . . . . . . . . . . . Highest-Rated Group . | . . . . . . . . . . . Highest-Rated Ally . | . . . . . . . . . . . Initial UFD Resources 40 | . . . . . 37 37 37 40 40 40 Total Orders . | . . . . . . . . . . . Ally Attacks . | . . . . . . . . . . . Total Damage . | . . . . . . . . . . . Kills . | . . . . . . . . . . . Allies Corrupted . | . . . . . . . . . . . Allies Melted . | . . . . . . . . . . . Intel | -11 -10 -10 -10 -7 -5 -5 -5 -4 -4 -4 ------- Run | Yrd Mat Min Sub Scr Fac Upp Upp Fac Was Fac Active Infowar (turns) 93 | . . . . . . 93 . . . . Decoding 93 | . . . . . . 93 . . . . Robot Analysis Total 1 | . 1 . . . . . . . . . Derelict Logs Recovered . | . . . . . . . . . . . Drone Launches . | . . . . . . . . . . . Drone Recoveries . | . . . . . . . . . . . Exploration | -11 -10 -10 -10 -7 -5 -5 -5 -4 -4 -4 ------------- Run | Yrd Mat Min Sub Scr Fac Upp Upp Fac Was Fac Turns Passed 4179 | 108 536 95 188 2271 67 382 27 218 84 203 Spaces Moved 3358 | 55 247 27 111 1570 43 265 47 467 154 372 Core 872 | 2 . . . 6 . 101 47 194 154 368 Treads 2207 | 53 247 27 111 1564 43 162 . . . . Legs 2 | . . . . . . 2 . . . . Wheels . | . . . . . . . . . . . Hover . | . . . . . . . . . . . Flight 277 | . . . . . . . . 273 . 4 Fastest Speed 30 | 50 160 160 160 50 140 50 50 40 50 30 Average Speed 114 | 156 160 160 160 144 140 124 50 44 50 49 Slowest Speed 320 | 160 160 160 160 160 140 320 50 50 50 50 Overloaded Moves . | . . . . . . . . . . . Propulsion Burnouts . | . . . . . . . . . . . Robots Hopped 3 | . . . . . . . . 3 . . Potential Cave-ins . | . . . . . . . . . . . Cave-ins Triggered . | . . . . . . . . . . . Exploration Rate (%) 28 | 3 39 8 12 86 2 49 11 14 79 11 Regions Visited 10 Branch Regions 5 Pre-discovered Areas . | . . . . . . . . . . . Known Exits Taken 3 | . 1 1 1 . . . . . . . Unknown Exits Taken 5 | 1 . . . 1 1 1 1 . . . Scrap Searched 7 | . . . . 4 . 3 . . . . Spaces Dug . | . . . . . . . . . . . Terrain Destroyed 14 | . . . . . 1 13 . . . . Melee . | . . . . . . . . . . . Projectile 14 | . . . . . 1 13 . . . . AOE . | . . . . . . . . . . . Terrain Rammed . | . . . . . . . . . . . Walls Destroyed . | . . . . . . . . . . . Machines Disabled . | . . . . . . . . . . . Actions | -11 -10 -10 -10 -7 -5 -5 -5 -4 -4 -4 --------- Run | Yrd Mat Min Sub Scr Fac Upp Upp Fac Was Fac Total 3548 | 72 309 61 122 1578 45 292 49 474 160 386 Wait 66 | 2 16 23 12 . . 6 . . 7 . Move 3344 | 55 246 26 110 1569 42 264 46 461 153 372 Hop 3 | . . . . . . . . 3 . . Pick Up 12 | 7 1 . . 2 . . . 2 . . Fast Attach 18 | 5 1 . . 5 . 2 . 1 . 4 Attach 9 | 1 . 1 . . . 5 . 1 . 1 Detach 2 | . . . . . . . . 1 . 1 Swap 5 | . 5 . . . . . . . . . Drop 2 | . . . . 2 . . . . . . Fire 73 | 1 39 11 . . 3 15 . 2 . 2 Melee . | . . . . . . . . . . . Ram 12 | . . . . . . . 3 3 . 6 Kick . | . . . . . . . . . . . Crush 2 | 1 1 . . . . . . . . . Escape Stasis . | . . . . . . . . . . . Rewire . | . . . . . . . . . . . Trap . | . . . . . . . . . . . Miscellaneous . | . . . . . . . . . . . Route ------- -11/Scrapyard -10/Materials (discovered 2 exits: [*Mat] / *Min) -10/Mines -10/Subcaves -7/Scraptown (discovered 2 exits: *Fac x2) -5/Factory -5/Upper Caves -5/Upper Caves -4/Factory (discovered 3 exits: Upp x2 / Arm) -4/Waste -4/Factory History --------- Turn | Location | Event 2 | -11/Scrapyard | Met Revision 17 43 | -11/Scrapyard | Discovered new exit (range 16) 109 | -11/Scrapyard | Entered Materials 315 | -10/Materials | Build established: Mutant 431 | -10/Materials | Discovered new exit (range 16) 618 | -10/Materials | Discovered new exit (range 14) 644 | -10/Materials | Identified exit to Mines 645 | -10/Materials | Entered Mines 718 | -10/Mines | Discovered new exit (range 5) 738 | -10/Mines | Identified exit to Subcaves 740 | -10/Mines | Entered Subcaves 741 | -10/Subcaves | Approached by a straggling Scientist 821 | -10/Subcaves | A swath of the cavern ceiling suddenly collapsed 927 | -10/Subcaves | Identified exit to Scraptown 928 | -10/Subcaves | Entered Scraptown 1151 | -7/Scraptown | Visited UFD Registry 1151 | -7/Scraptown | Registered with UFD as "Deathlauncher" 1152 | -7/Scraptown | Heard Great Nut preacher, LISTEN AND RECITE! 1184 | -7/Scraptown | Visited DA-N13 Charitable Foundation 1192 | -7/Scraptown | Found DCF Scrap (29 items) 1229 | -7/Scraptown | Visited Observation Area 1309 | -7/Scraptown | Visited Supply Room 1380 | -7/Scraptown | Visited Junk Repository 1424 | -7/Scraptown | Visited Scrap Suit Storage 1450 | -7/Scraptown | Visited Infowarlord's Domain 1476 | -7/Scraptown | Visited Modified Component R&D 1480 | -7/Scraptown | Released all parts (7) 1561 | -7/Scraptown | Found Scrap Suit 1712 | -7/Scraptown | Visited TADAMA 1740 | -7/Scraptown | Visited Cave Peace 1785 | -7/Scraptown | Discovered new exit (range 5) 1869 | -7/Scraptown | Build established: Scrapper 2199 | -7/Scraptown | Visited Shadow of the Wyrm 2222 | -7/Scraptown | Visited Spacefarers 3194 | -7/Scraptown | Discovered new exit (range 3) 3199 | -7/Scraptown | Entered Factory 3199 | -5/Factory | Evolved 10 slots: Power x1, Propulsion x4, Utility x3, Weapon x2 3259 | -5/Factory | Discovered new exit (range 5) 3266 | -5/Factory | Entered Upper Caves 3594 | -5/Upper Caves | Attracted the attention of an 0b10 base 3598 | -5/Upper Caves | Released all parts (14) 3639 | -5/Upper Caves | Spotted B-75 Beast 3642 | -5/Upper Caves | Discovered new exit (range 14) 3648 | -5/Upper Caves | Entered another Upper Caves area 3665 | -5/Upper Caves | Discovered new exit (range 16) 3672 | -5/Upper Caves | Core integrity fell below 50% 3675 | -5/Upper Caves | Entered Factory 3675 | -4/Factory | Evolved 2 slots: Utility x2 3841 | -4/Factory | Identified exit to Upper Caves 3841 | -4/Factory | Identified exit to Armory 3893 | -4/Factory | Sucked down chute 3893 | -4/Factory | Entered Waste 3894 | -4/Waste | Build established: Mutant 3907 | -4/Waste | Spotted C-40 Crusher 3938 | -4/Waste | Spotted C-40 Crusher 3945 | -4/Waste | Spotted C-40 Crusher 3950 | -4/Waste | Spotted C-40 Crusher 3951 | -4/Waste | Spotted C-40 Crusher 3959 | -4/Waste | Spotted C-40 Crusher 3970 | -4/Waste | Discovered new exit (range 16) 3977 | -4/Waste | Entered Factory 4104 | -4/Factory | Spotted B-86 Titan 4137 | -4/Factory | Core integrity fell below 50% 4164 | -4/Factory | Core integrity fell below 20% 4180 | -4/Factory | Destroyed by Y-64 Sentinel with KE Penetrator Last Messages --------------- 04140_ Knocked back. 04140_ Imp. Surge Thruster severed. 04141_ Acquired Imp. Surge Thruster. 04141_ K-01 Serf collects debris. 04144_ Imp. Surge Thruster severed. 04151_ Hyp. Mass Driver severed. 04151_ Acquired Hyp. Mass Driver. 04153_ C-35 Carver suffers critical hit (Destroy). 04153_ C-35 Carver destroyed. 04156_ Acquired Imp. Surge Thruster. 04156_ Penetrated by Slug. 04156_ Imp. Surge Thruster destroyed. 04156_ Knocked back. 04158_ Penetrated by Slug. 04158_ Knocked back. 04159_ W-44 Eye sends out distress signal. 04162_ Slug penetrates Wall. 04165_ Slammed into A-15 Conveyor. 04177_ Knocked back. 04180_ Penetrated by Slug. Map ----- +----------------------------------------------------+ | ??????????????? ############## #????# #????????? | | ??????????????# #???## ##???????? | | ??????????????# ] % #???# #???????? | | ??????????????# !! ##### #???????? | | ??????????????# !! +???????? | | ?????????????? ! ######### #???????? | | ?????????????? ????????# #???????? | | ??????????????? """ ?????????## ###???????? | | ???????????????????"" ????????????# #?????????? | | ???????????????????"" ????????????# #?????????? | | ??????????????????? ?????????????# #?????????? | | ??????????????????!! ??????????????# #?????????? | | ????????????????? ?! ??????????????## ##????????? | | ????????????????????????????????????# #########? | | ????????????????????????????????????+ " | | ????????????????????????????????????# ######+##? | | ????????????????????????????????????## ##????????? | | ?????????????????????????????????????# ### ?????? | | ?????????????????????????????#+#??#+## / ??????? | | ?????????????????????????##### #### ###???????? | | ?????????????????????????# #?????????? | | ?????????????????????????# #?????????? | | ?????????????????????????# ####?????????? | | ?????????????????????????# #???????????? | | ????????????????# ! #### c #???????????? | | ????????????????+ Y @ #???????????? | | ????????????????# [ ######## ##???????????? | | ????????????????# ???????????#######????????????? | | ?????????????????????????????????????????????????? | | ?????????????????????????????????????????????????? | | ?????????????????????????????????????????????????? | | ?????????????????????????????????????????????????? | | ?????????????????????????????????????????????????? | | ?????????????????????????????????????????????????? | | ?????????????????????????????????????????????????? | | ?????????????????????????????????????????????????? | | ?????????????????????????????????????????????????? | | ?????????????????????????????????????????????????? | | | | | | | | | | | | | | | | | | | | | | | | | +----------------------------------------------------+ Best States ------------- Heat Dissipation 43 Energy Generation 21 Energy Capacity 315 Matter Stores 300 Matter Capacity 300 Sight Range 16 Terrain Scan Density 10 Resistance: EX 50 Evasion (%) 62 Recoil Reduction 2 Item Schematics ----------------- Cargo Storage Unit | -10/Materials | Hacked Robot Schematics ------------------ None Fabricated ------------ Nothing Repaired ---------- Nothing Studied --------- None Alien Tech Used ----------------- None Achievements -------------- You Again Challenges ------------ None Game ------ Seed StructuralGrapheneBattery Manual? 0 Play Time 00:23:52 Cumulative 671.5 hours Start 2026.02.15 @ 23:06:51 End 2026.03.02 @ 20:00:12 Sessions 8 Manual Loads 0 Difficulty Rogue Special Mode None Game No. 590 Rogue 375 Adventurer 112 Explorer 103 Win Type - Total 43 Types 26/0/9/3/0/0/4/1/0/0 Lore% 69 Gallery% 75 Achievement% 52 Wizard Run 0 Options --------- Layout 0 ASCII 1 Keyboard 1 Movement Vi Keybinds 1 Fullscreen 2 Font 18/SmallcapsGlow Map View 66x52 Zoom Use 0% Tactical HUD 1 Map Filters NONE Filters NONE Steam 0 RUN: c133ad2e-a457-4387-96e8-1609304ce0ff